Cogmind - Beta 13 @@@ ROGUE MODE // 2024.05.17 @ 23:19:22 Player: BatSpy Result: Destroyed by Y-45 Defender with Heavy Assault Rifle Performance ------------- Evolutions (1) 500 Regions Visited (2) 400 Robots Destroyed (22) 110 Value Destroyed (611) 611 Prototype IDs (1) 20 Alien Tech Used (0) 0 Bonus (0) 0 TOTAL SCORE: 1641 Bonus ------- None Cogmind --------- Core Integrity 0/400 Matter 290/300 Energy 99/100 System Corruption 27% Temperature Cool (9) Movement Core (150) Ox2 Location -9/Materials Parts ------- > --- POWER (1) -------- (None) > --- PROPULSION (3) --- Aluminum Leg > --- UTILITY (3) ------ Small Storage Unit > --- WEAPON (2) ------- Hammer Hammer > --- INVENTORY (8) ---- (None) Peak State ------------ > --- POWER ------------ Ion Engine > --- PROPULSION ------- Aluminum Leg Aluminum Leg Aluminum Leg > --- UTILITY ---------- Heat Sink Seismic Detector > --- WEAPON ----------- Advanced Beam Cannon Assault Rifle > --- INVENTORY -------- Ion Engine Aluminum Leg Light Assault Rifle Rocket Launcher Mining Laser [Rating: 10] Favorites ----------- Power Ion Engine Engine Ion Engine Propulsion Aluminum Leg Treads Light Treads Leg Aluminum Leg Utility Seismic Detector Device Seismic Detector Storage Small Storage Unit Protection Light Armor Plating Weapon Hammer Energy Cannon Advanced Beam Cannon Ballistic Gun Assault Rifle Launcher Rocket Launcher Special Weapon Mining Laser Impact Weapon Hammer Build | -11 -10 -9 ------- Run | Yrd Mat Mat Slots Evolved 2 | . . 2 Power . | . . . Propulsion 1 | . . 1 Utility 1 | . . 1 Weapon . | . . . Parts Attached 36 | 5 6 25 Power 5 | 1 1 3 Engine 5 | 1 1 3 Core . | . . . Reactor . | . . . Propulsion 14 | 2 2 10 Treads 4 | 2 . 2 Leg 10 | . 2 8 Wheel . | . . . Hover . | . . . Flight . | . . . Utility 8 | . 3 5 Device 6 | . 3 3 Storage 1 | . . 1 Processor . | . . . Hackware . | . . . Protection 1 | . . 1 Artifact . | . . . Weapon 9 | 2 . 7 Energy Gun . | . . . Energy Cannon 1 | . . 1 Ballistic Gun 3 | 2 . 1 Ballistic Cannon . | . . . Launcher 1 | . . 1 Special Weapon 1 | . . 1 Impact Weapon 3 | . . 3 Slashing Weapon . | . . . Piercing Weapon . | . . . Special Melee Weapon . | . . . Unidentified Prototypes 1 | . . 1 Corrupted Parts 4 | . . 4 System Corruption 27 | . . 27 Parts Lost 20 | . 1 19 Power 4 | . 1 3 Propulsion 8 | . . 8 Utility 5 | . . 5 Weapon 3 | . . 3 Highest Loss Streak 6 | . 1 6 To Critical Strikes . | . . . Average Slot Usage (%) 83 | . 91 81 Engine 7 | . 13 5 Treads 7 | . 23 1 Leg 18 | . 4 23 Device 19 | . 20 19 Storage 6 | . . 8 Protection 1 | . . 1 Ballistic Gun 14 | . 28 9 Impact Weapon 7 | . . 9 Naked Turns . | . . . Heaviest Build 15 | 6 10 15 Greatest Support 40 | 40 40 30 Greatest Overweight (x) 3 | . . 3 Average Overweight (x) . | . . . Largest Inventory Capacity 8 | 5 5 8 Average Capacity 6 | 5 5 7 Most Carried 6 | 5 5 6 Average Carried 2 | . 3 2 Final Capacity 8 | 5 5 8 Final Carried 4 | . 4 . Class Distribution -------------------- 65% | Mutant 34% | Scavenger-Mutant Dominant Class ---------------- Mutant | -10/Materials Mutant | -9/Materials Resources | -11 -10 -9 ----------- Run | Yrd Mat Mat Matter Collected 774 | 209 137 428 Remotely . | . . . Salvage Created 653 | . 274 379 Parts 33 | . 19 14 Haulers Intercepted . | . . . Recyclers Shooed . | . . . Parts Field Recycled . | . . . Retrieved Matter . | . . . Parts Self-Destructed . | . . . Prevented . | . . . Kills | -11 -10 -9 ------- Run | Yrd Mat Mat Combat Hostiles Destroyed 18 | . 7 11 Melee 4 | . . 4 Guns 11 | . 7 4 Classes Destroyed 6 | . 4 2 Worker 1 | . 1 . Builder 1 | . . 1 Watcher 2 | . 1 1 Swarmer 4 | . 2 2 Grunt 10 | . 5 5 Sentry 4 | . . 4 Best Kill Streak 4 | . 4 4 Combat Bots Only 3 | . 3 2 Max Kills in Single Turn 1 | . 1 1 Gunslinging . | . . . Exploded . | . . . Melee 1 | . . 1 Uniques/NPCs Destroyed . | . . . Combat | -11 -10 -9 -------- Run | Yrd Mat Mat Hostile Shots Fired 251 | . 54 197 Missed 63 | . 19 44 Damage Taken 2317 | . 335 1982 Core 467 | . 63 404 Absorbed by Shields . | . . . Core Remaining (%) 87 | 100 74 . Volleys Fired 53 | . 24 29 Largest 2 | . 2 2 Hottest 53 | . 40 53 Shots Fired 99 | . 48 51 Gun 88 | . 48 40 Cannon . | . . . Launcher 11 | . . 11 Special . | . . . Kinetic 88 | . 48 40 Thermal . | . . . Explosive 11 | . . 11 Electromagnetic . | . . . Robot Hit Streak 8 | . 6 8 Robot Miss Streak 7 | . 5 7 Penetration Max . | . . . Secondary Targets 2 | . 1 1 Max Gunslinging Chain 1 | . 1 1 Shots Hit Robots 97 | . 29 68 Core Hits 31 | . 15 16 Critical Kills 1 | . . 1 Critical Parts Destroyed 9 | . . 9 Critical Strikes 11 | . . 11 Smash 11 | . . 11 Melee Attacks 45 | . . 45 Impact 45 | . . 45 Slashing . | . . . Piercing . | . . . Sneak Attacks . | . . . Combat Hostiles . | . . . Follow-up Attacks 5 | . . 5 Damage Inflicted 1616 | . 304 1312 Guns 565 | . 304 261 Cannons . | . . . Explosions 204 | . . 204 Melee 847 | . . 847 Ramming . | . . . Kinetic 565 | . 304 261 Thermal . | . . . Explosive 204 | . . 204 Electromagnetic . | . . . Impact 847 | . . 847 Slashing . | . . . Piercing . | . . . Highest Corruption 27 | . . 27 Average Corruption 8 | . . 8 Corruption Purged . | . . . Corruption Blocked . | . . . Effects 11 | . . 11 Message Errors 1 | . . 1 Matter Fused 3 | . . 3 Heat Flow Errors 2 | . . 2 Energy Discharges 1 | . . 1 Data Loss (minor) 3 | . . 3 Alerts 1 | . . 1 Overload Shots . | . . . Overflow Damage 183 | . . 183 Projectiles . | . . . Explosions . | . . . Melee 183 | . . 183 Knockbacks . | . . . Impact . | . . . Kinetic . | . . . Secondary . | . . . Self-Inflicted Damage 3 | . . 3 Shots 1 | . . 1 Rammed . | . . . Targets Rammed . | . . . Kicked . | . . . Crushed . | . . . Highest Temperature 210 | . 24 210 Average Temperature 55 | . 12 73 Received Heat Transfer 903 | . 114 789 Siege Activations . | . . . Robots Corrupted . | . . . Combat Hostiles . | . . . Parts Fried 4 | . . 4 Impact Corruptions 10 | . . 10 Robots Melted . | . . . Combat Hostiles . | . . . Parts Melted . | . . . Heat Transferred . | . . . Parts Sabotaged . | . . . Parts Stolen . | . . . Parts Stripped . | . . . Power Chain Reactions . | . . . Alert | -11 -10 -9 ------- Run | Yrd Mat Mat Peak Influence 202 | . 202 147 Initial 7 | . . 7 Average 46 | . 88 33 Maximum Alert Level 1 | . 1 . Low Security (%) 97 | 100 88 100 Level 1 2 | . 11 . Level 2 . | . . . Level 3 . | . . . Level 4 . | . . . Level 5 . | . . . High Security . | . . . Max Security . | . . . Squads Dispatched 3 | . 2 1 Investigation 1 | . 1 . Extermination . | . . . Reinforcement 2 | . 1 1 Assault . | . . . Garrison . | . . . Intercept . | . . . Searches Triggered . | . . . Construction Impeded . | . . . Haulers Reinforced . | . . . Active Scanning Responses . | . . . Cargo Convoy Interrupts . | . . . Stealth | -11 -10 -9 --------- Run | Yrd Mat Mat Distress Signals 1 | . . 1 Communications Jammed . | . . . Distress Signals . | . . . Times Spotted 34 | . 13 21 Peak Tracking Total 5 | . 4 5 Tactical Retreats 2 | . 1 1 Traps | -11 -10 -9 ------- Run | Yrd Mat Mat Traps Triggered 1 | . 1 . Indirectly . | . . . Trap Hack Attempts . | . . . Triggered . | . . . Disarmed . | . . . Reprogrammed . | . . . Reused . | . . . Traps Extracted . | . . . Installed . | . . . Triggered . | . . . Machines | -11 -10 -9 ---------- Run | Yrd Mat Mat Machines Disabled . | . . . Max in Single Turn . | . . . Machines Repaired . | . . . Machines Dismantled . | . . . Machines Sabotaged . | . . . Overloaded Fab Kills . | . . . Hacking | -11 -10 -9 --------- Run | Yrd Mat Mat Machines Accessed 3 | . 1 2 Terminals 2 | . 1 1 Fabricators . | . . . Repair Stations . | . . . Recycling Units . | . . . Scanalyzers 1 | . . 1 Garrison Access . | . . . Total Hacks 6 | . 2 4 Successful 5 | . 2 3 Failed 1 | . . 1 Catastrophic 1 | . . 1 Database Lockouts . | . . . Manual . | . . . Terminals 4 | . 2 2 Fabricators . | . . . Repair Stations . | . . . Recycling Units . | . . . Scanalyzers 2 | . . 2 Garrison Access . | . . . Terminal Hacks 3 | . 2 1 Robot Analysis 1 | . . 1 Dispatch Records 1 | . 1 . Transport Status 1 | . 1 . Fabricator Hacks . | . . . Repair Station Hacks . | . . . Recycling Unit Hacks . | . . . Scanalyzer 2 | . . 2 Insert Component 1 | . . 1 Analyze 1 | . . 1 Garrison Access Hacks . | . . . Unauthorized Hacks . | . . . Terminals . | . . . Fabricators . | . . . Repair Stations . | . . . Recycling Units . | . . . Scanalyzers . | . . . Garrison Access . | . . . Data Cores Recovered . | . . . Used . | . . . Hacking Detections 2 | . . 2 Full Trace Events 1 | . . 1 Feedback Events . | . . . Feedback Blocked . | . . . Robot Schematics Acquired . | . . . Robots Built . | . . . Authchips . | . . . Time . | . . . Total Robot Build Rating . | . . . Part Schematics Acquired 1 | . . 1 Parts Built . | . . . Authchips . | . . . Time . | . . . Total Part Build Rating . | . . . Parts Repaired . | . . . Time . | . . . Parts Recycled . | . . . Recycled Matter . | . . . Retrieved Matter . | . . . Retrieved Components . | . . . Parts Scanalyzed 1 | . . 1 Part Schematics Acquired 1 | . . 1 Parts Damaged . | . . . Bothacking | -11 -10 -9 ------------ Run | Yrd Mat Mat Used RIF Installer . | . . . Robots Hacked . | . . . Non-combat . | . . . Combat . | . . . Robot Hacks Applied . | . . . Relay Couplers Released . | . . . Fabnet Peak Effective % . | . . . Robots Rewired . | . . . Allies Hacked . | . . . Hacks Repelled . | . . . Allies | -11 -10 -9 -------- Run | Yrd Mat Mat Total Allies . | . . . Largest Group . | . . . Highest-Rated Group . | . . . Highest-Rated Ally . | . . . Total Orders . | . . . Ally Attacks . | . . . Total Damage . | . . . Kills . | . . . Allies Corrupted . | . . . Allies Melted . | . . . Intel | -11 -10 -9 ------- Run | Yrd Mat Mat Robot Analysis Total 1 | . . 1 Derelict Logs Recovered . | . . . Drone Launches . | . . . Drone Recoveries . | . . . Exploration | -11 -10 -9 ------------- Run | Yrd Mat Mat Turns Passed 1705 | 47 422 1236 Spaces Moved 926 | 34 218 674 Core 19 | 15 . 4 Treads 254 | 19 169 66 Legs 653 | . 49 604 Wheels . | . . . Hover . | . . . Flight . | . . . Fastest Speed 50 | 50 120 120 Average Speed 138 | 111 151 136 Slowest Speed 200 | 160 160 200 Overloaded Moves . | . . . Propulsion Burnouts . | . . . Robots Hopped . | . . . Cave-ins Triggered . | . . . Exploration Rate (%) 28 | 3 41 41 Regions Visited 2 Branch Regions . Pre-discovered Areas . | . . . Known Exits Taken . | . . . Unknown Exits Taken 2 | 1 1 . Scrap Searched . | . . . Spaces Dug . | . . . Terrain Destroyed 76 | . . 76 Melee . | . . . Projectile . | . . . AOE 76 | . . 76 Terrain Rammed . | . . . Walls Destroyed . | . . . Machines Disabled . | . . . Actions | -11 -10 -9 --------- Run | Yrd Mat Mat Total 1182 | 43 268 871 Wait 86 | . 6 80 Move 924 | 33 217 674 Hop . | . . . Pick Up 33 | 5 11 17 Fast Attach 1 | . . 1 Attach 24 | 5 3 16 Detach . | . . . Swap 11 | . 3 8 Drop 10 | . 4 6 Fire 53 | . 24 29 Melee 40 | . . 40 Ram . | . . . Kick . | . . . Crush . | . . . Escape Stasis . | . . . Rewire . | . . . Trap . | . . . Miscellaneous . | . . . Route ------- -11/Scrapyard -10/Materials (discovered 2 exits: *Mat / [*Min]) -9/Materials History --------- Turn | Location | Event 6 | -11/Scrapyard | Discovered new exit (range 15) 48 | -11/Scrapyard | Entered Materials 303 | -10/Materials | Build established: Mutant 369 | -10/Materials | Discovered new exit (range 8) 444 | -10/Materials | Discovered new exit (range 15) 470 | -10/Materials | Entered another Materials area 470 | -9/Materials | Evolved 2 slots: Propulsion x1, Utility x1 770 | -9/Materials | Build established: Scavenger-Mutant 1126 | -9/Materials | Core integrity fell below 50% 1175 | -9/Materials | Lost 6 parts (2p3n1w) 1286 | -9/Materials | Build established: Mutant 1462 | -9/Materials | Core integrity fell below 20% 1594 | -9/Materials | System corruption reached 10% 1706 | -9/Materials | Destroyed by Y-45 Defender with Heavy Assault Rifle Last Messages --------------- Acquired Corrupted Aluminum Leg. Acquired 14 matter. Acquired 10 matter. Aluminum Leg destroyed. System corrupted: Matter fused (-10). Hammer follow-up attack on Y-45 Defender. System corrupted: Heat flow error (+180). Y-45 Defender suffers critical hit (Smash). Hammer follow-up attack on Y-45 Defender. Y-45 Defender suffers critical hit (Smash). Destroyed Heat Sink. Y-45 Defender system corrupted by crushing effect. Structural Scanner destroyed. Aluminum Leg destroyed. Integrated Corrupted Aluminum Leg (+8). Lgt. Treads destroyed. System corrupted: Component data lost. Lgt. Armor Plating destroyed. Aluminum Leg destroyed. Map ----- +----------------------------------------------------+ | | | | | | | | | | | | | | | | | | | | | | | | | | | | | | | | | | | ??????????################?????????? | | ??????????## """"" ##?????????? | | ??????????## """"" ##??#######? | | ??????????## """"" ????? ?? | | #########????? ? ##? """?? | | #########?????? ##? """#? | | # ###########+####+## """#? | | # ########## gg ## #? | | # / a gY @ [ """#? | | # """ ############Y## ## """#? | | # """ ## ## ## """#? | | # """ # ## ## #? | | #####+### """ """ # ##+#######? | | ##### ### """ """ # ##???? | | ##### ##??""" """ # ###### | | ##### ##??? # ##+######## | | ## ##?? ###### ## | | ## ##??################ ## | | ## ##??## #??## """ ## | | "" ## ###### ""???## """"" ## | | "" ## ###### """ T"##?## """"" ## | | "" ## # """ ""##?## """"" ## | | "" ## %+ """ ##?## """ ## | | ## ^ # ##?## ## | | ##### # ##?## ## | | #### # ##?######+##### | | ##+##+######?###### ##### | | # ?????## ##??? | | ^ + ?????###### ##??? | | ############### # ?????###### ##??? | | ######## ####### # ?????## # ##??? | | # """ ##??????????## # ##??? | | + """"" ###### ?????## # ##??? | +----------------------------------------------------+ Best States ------------- Heat Dissipation 38 Energy Generation 10 Energy Capacity 250 Matter Stores 300 Matter Capacity 300 Sight Range 16 Terrain Scan Range 14 Terrain Scan Density 10 Armor Coverage 150 Evasion (%) 55 Recoil Reduction 2 Item Schematics ----------------- Lgt. Armor Plating | -9/Materials | Scanalyzed Robot Schematics ------------------ None Fabricated ------------ Nothing Alien Tech Used ----------------- None Achievements -------------- None Challenges ------------ None Game ------ Seed GodPhasingCompressor Manual? 0 Play Time 00:15:48 Cumulative 10.5 hours Start 2024.05.17 @ 22:52:04 End 2024.05.17 @ 23:19:22 Sessions 3 Manual Loads 0 Difficulty Rogue Special Mode None Game No. 19 Rogue 19 Adventurer 0 Explorer 0 Win Type - Total 0 Types 0/0/0/0/0/0/0/0/0 Lore% 11 Gallery% 21 Achievement% 18 Wizard Run 0 Options --------- Layout 1 ASCII 0 Keyboard 0 Movement Mouse Keybinds 0 Fullscreen 2 Font 32/SmallcapsGlow Map View 50x35 Zoom Use 0% Tactical HUD 0 Map Filters NONE Filters NONE Steam 1 RUN: 67f9b609-64e0-4287-aeaa-3da38d5e3531